bitfinex/quotes_SOLUSD_20251202
["timestamp","ask_amount","ask_price","bid_price","bid_amount"]
[1764684664357,7.62601998,131.13,131.11,1e-08]
[1764684665019,7.62601998,131.13,131.11,0.69000001]
[1764684666242,7.62543846,131.14,131.11,0.69000001]
[1764684666643,7.62543846,131.14,131.11,62.59000001]
[1764684667143,6.0844281,131.13,131.11,1e-08]
[1764684667353,5.4344281,131.12,131.11,1e-08]
[1764684667544,26.68903461,131.14,131.11,0.69000001]
[1764684667925,5.4344281,131.13,131.11,1e-08]
[1764684668440,13.06089306,131.13,131.11,1e-08]
[1764684668835,13.71089306,131.13,131.11,1e-08]
[1764684669147,6.0844281,131.12,131.11,1e-08]
[1764684669544,14.89437302,131.12,131.11,1e-08]
[1764684670251,7.62646496,131.13,131.11,1e-08]
[1764684670547,13.06055512,131.13,131.11,1e-08]
[1764684670722,7.62561383,131.14,131.11,0.69000001]
[1764684670924,32.12363808,131.14,131.11,0.69000001]
[1764684672037,5.4344281,131.12,131.11,1e-08]
[1764684672354,13.76102968,131.12,131.11,1e-08]
[1764684672551,7.62621624,131.13,131.11,1e-08]
[1764684672730,13.06064434,131.13,131.11,1e-08]
[1764684673053,13.76064434,131.13,131.11,1e-08]
[1764684674548,5.4344281,131.12,131.11,1e-08]
[1764684675456,13.76102968,131.12,131.11,1e-08]
[1764684676641,22.5709746,131.12,131.11,1e-08]
[1764684677141,17.1365465,131.12,131.11,1e-08]
[1764684677340,22.5709746,131.12,131.11,1e-08]
[1764684677865,31.1109746,131.12,131.11,1e-08]
[1764684678583,41.9854105,131.12,131.11,1e-08]
[1764684678869,38.8798386,131.12,131.11,1e-08]
[1764684680648,33.4454105,131.12,131.11,1e-08]
[1764684680841,38.8798386,131.12,131.11,1e-08]
[1764684683070,22.5709746,131.12,131.11,1e-08]
[1764684683562,25.11880892,131.09,131.01,0.66]
[1764684683747,5.4344281,131.03,131.0,0.66]
[1764684683953,5.4344281,131.02,131.0,0.66]
[1764684684260,7.63300511,131.01,130.98,0.66]
[1764684684465,9.98544595,131.01,130.98,0.66]
[1764684684676,9.98544595,131.01,130.97,0.2]
[1764684684855,2.35244084,130.99,130.97,0.2]
[1764684685059,2.35244084,130.98,130.97,0.2]
[1764684685840,8.80994492,130.99,130.97,0.2]
[1764684686070,9.98661138,130.99,130.97,0.2]
[1764684686245,2.35244084,130.98,130.97,0.2]
[1764684686445,5.44882259,130.98,130.97,0.2]
[1764684686853,7.63417054,130.99,130.97,0.2]
[1764684687147,13.08299313,130.99,130.97,0.86]
[1764684687355,7.63417054,130.99,130.97,0.86]
[1764684687769,7.63417054,130.99,130.97,0.2]
[1764684688083,13.08299313,130.99,130.97,0.2]
[1764684688240,5.44882259,130.98,130.97,0.2]
[1764684688771,7.63417054,130.99,130.97,0.86]
[1764684689347,7.63379128,131.0,130.97,0.2]
[1764684689543,7.63379128,131.0,130.98,0.66]
[1764684690282,7.63300511,131.01,130.98,0.66]
[1764684690448,7.63266919,131.02,130.98,0.66]
[1764684691355,13.08149178,131.02,130.98,0.66]
[1764684692582,7.63125763,131.04,130.98,13.74327481]
[1764684692891,13.08008022,131.04,130.98,13.74327481]
[1764684693052,5.44882259,131.03,130.99,0.7]
[1764684694251,13.0808158,131.03,130.99,0.7]
[1764684694959,13.0808158,131.03,130.99,8.33405608]
[1764684695388,13.08030494,131.04,130.99,8.33405608]
[1764684695689,5.44882259,131.05,131.0,0.7]
[1764684695984,36.07303876,131.07,131.01,8.54]
[1764684695985,5.44882259,131.04,131.01,8.54]
[1764684696285,5.44882259,131.03,131.01,8.54]
[1764684696646,5.44882259,131.02,130.98,8.54]
[1764684696852,5.44882259,131.02,130.99,0.7]
[1764684697160,7.63200979,131.03,130.99,0.7]
[1764684697364,5.44882259,131.02,130.99,0.7]
[1764684697559,19.7660658,131.06,130.99,0.7]
[1764684697789,5.44882259,131.04,130.99,62.6]
[1764684698152,5.44882259,131.03,131.0,0.7]
[1764684698348,16.308864,131.07,131.0,62.6]
[1764684698651,5.44882259,131.07,131.01,5.44882259]
[1764684698980,5.44882259,131.06,131.02,8.54]
[1764684699156,5.44882259,131.06,131.02,9.24]
[1764684699357,5.44882259,131.04,131.01,0.7]
[1764684700583,13.08022929,131.04,131.01,0.7]
[1764684700876,5.44882259,131.05,131.01,8.33274762]
[1764684701073,5.44882259,131.06,131.01,8.33274762]
[1764684701272,5.44882259,131.06,131.02,0.7]
[1764684701910,5.44882259,131.06,131.03,8.54]
[1764684702584,13.07833353,131.07,131.04,0.68]
[1764684702761,7.62907465,131.08,131.04,0.68]
[1764684703155,13.07789724,131.08,131.04,0.68]
[1764684703550,5.44882259,131.07,131.01,16.308864]
[1764684703754,5.44882259,131.04,131.02,0.68]
[1764684703963,5.44882259,131.06,131.02,0.68]
[1764684705081,7.63027779,131.06,131.02,0.68]
[1764684705279,7.62938344,131.08,131.03,13.98882259]
[1764684705480,7.6284986,131.09,131.05,5.44882259]
[1764684705686,7.6284986,131.09,131.06,8.54]
[1764684706084,5.44882259,131.07,131.06,8.54]
[1764684706274,5.44882259,131.07,131.04,62.58]
[1764684706470,5.44882259,131.05,131.02,9.22]
[1764684706689,6.13882259,131.06,131.02,9.22]
[1764684707496,13.7694979,131.05,131.02,9.22]
[1764684707794,8.80994492,131.08,131.02,8.54]
[1764684707962,52.31718617,131.1,131.04,5.44882259]
[1764684708168,24.92807121,131.1,131.06,5.44882259]
[1764684708476,24.92807121,131.1,131.05,14.66882259]
[1764684708671,24.92807121,131.1,131.06,0.68]
[1764684708993,38.0048165,131.1,131.06,0.68]
[1764684709195,38.6948165,131.1,131.06,0.68]
[1764684710166,24.92807121,131.1,131.06,0.68]
[1764684710367,24.92807121,131.1,131.06,8.31001427]
[1764684710568,31.0668938,131.1,131.06,0.68]
[1764684710769,31.0668938,131.1,131.07,0.68]
[1764684710770,24.92807121,131.1,131.07,0.68]
[1764684711563,24.92807121,131.1,131.08,8.54]
[1764684712088,24.92807121,131.1,131.08,9.22]
[1764684712493,32.55583827,131.1,131.08,9.22]
[1764684712795,38.69466086,131.1,131.08,8.54]
[1764684712982,32.55583827,131.1,131.08,8.54]
[1764684713165,5.44882259,131.09,131.08,8.54]
[1764684713673,7.62834693,131.09,131.08,8.54]
[1764684713890,13.76716952,131.09,131.08,8.54]
[1764684714086,8.31834693,131.09,131.05,8.54]
[1764684714394,10.6680846,131.09,131.06,0.68]
[1764684714695,34.90573468,131.1,131.06,0.68]
[1764684714894,24.92807121,131.1,131.08,2.34973767]
[1764684715102,7.62485703,131.15,131.09,10.88973767]
[1764684715409,7.62485703,131.15,131.09,8.54]
[1764684715573,2.34973767,131.14,131.09,9.22]
[1764684715774,7.62566071,131.14,131.1,0.68]
[1764684715975,10.66539838,131.14,131.1,0.68]
[1764684716176,2.34973767,131.12,131.09,8.54]
[1764684716601,2.34973767,131.1,131.09,8.54]
[1764684716787,2.34973767,131.1,131.06,9.22]
[1764684717301,42.99812086,131.14,131.07,0.68]
[1764684717604,2.34973767,131.12,131.07,0.68]
[1764684717807,9.97680581,131.12,131.07,0.68]
[1764684717989,10.66680581,131.12,131.07,8.30946458]
[1764684718173,9.97680581,131.12,131.07,8.30946458]
[1764684718370,2.34973767,131.09,131.06,8.54]
[1764684718795,2.34973767,131.09,131.06,9.22]
[1764684719203,3.03973767,131.09,131.06,8.54]
[1764684719916,9.97866656,131.08,131.06,8.54]
[1764684720201,3.03973767,131.09,131.06,8.54]
[1764684720411,4.36149773,131.09,131.06,8.54]
[1764684720587,3.67149773,131.08,131.06,8.54]
[1764684720783,4.36149773,131.08,131.06,8.54]
[1764684721308,3.67149773,131.07,131.06,8.54]
[1764684721702,11.30100867,131.07,131.06,8.54]
[1764684721887,11.99100867,131.07,131.01,8.31266124]
[1764684722083,3.67149773,131.06,131.02,9.22]
[1764684722401,7.62951094,131.07,131.02,9.22]
[1764684722604,16.72365804,131.07,131.03,0.68]
[1764684722792,7.62951094,131.07,131.03,0.68]
[1764684722995,16.72365804,131.07,131.03,0.68]
[1764684723200,9.0941471,131.05,131.03,0.68]
[1764684724094,17.41522493,131.05,131.02,8.54]
[1764684724603,16.72522493,131.05,131.02,9.22]
[1764684724800,7.63107783,131.05,131.03,0.68]
[1764684725196,7.63017823,131.06,131.03,0.68]
[1764684725607,16.72338223,131.08,131.03,62.58]
[1764684725797,16.72338223,131.08,131.04,0.68]
[1764684728908,16.72463213,131.06,131.03,9.22]
[1764684729109,7.63048503,131.06,131.03,9.22]
[1764684729286,16.72463213,131.06,131.03,9.22]
[1764684729486,16.72391592,131.07,131.04,0.68]
[1764684729788,9.0941471,131.06,131.03,16.17176224]
[1764684729983,9.0941471,131.06,131.03,16.85176224]
[1764684730185,16.72429074,131.06,131.03,16.85176224]
[1764684730502,8.31971578,131.07,131.03,16.85176224]
[1764684730701,17.41386288,131.07,131.03,16.85176224]
[1764684731416,9.0941471,131.06,131.03,9.22]
[1764684731939,16.72425072,131.06,131.03,9.22]
[1764684732118,16.72425072,131.06,131.03,9.26]
[1764684732416,9.7841471,131.07,131.03,16.89175005]
[1764684732709,7.62939575,131.08,131.04,0.72]
[1764684732710,9.0941471,131.08,131.04,0.72]
[1764684733009,9.0941471,131.09,131.04,0.72]
[1764684733417,9.7741471,131.09,131.04,0.72]
[1764684733798,9.0941471,131.08,131.04,0.72]
[1764684734102,9.7741471,131.08,131.04,8.35117823]
[1764684734298,17.40319997,131.08,131.04,8.35117823]
[1764684734599,9.7741471,131.07,131.04,0.72]
[1764684734900,9.0941471,131.07,131.04,0.72]
[1764684735409,8.30905287,131.08,131.04,0.72]
[1764684735410,9.0941471,131.08,131.04,0.72]
[1764684735614,33.36357329,131.12,131.04,8.35094467]
[1764684735615,0.68,131.11,131.04,8.35094467]
[1764684735819,9.0941471,131.09,131.04,27.42908874]
[1764684735994,16.72229201,131.1,131.05,0.72]
[1764684736316,16.72229201,131.1,131.06,8.54]
[1764684736516,52.19767411,131.12,131.06,8.54]
[1764684736684,9.0941471,131.11,131.06,9.26]
[1764684736888,9.0941471,131.1,131.06,9.26]
[1764684737395,9.7741471,131.1,131.06,9.26]
[1764684738012,9.7741471,131.09,131.06,8.54]
[1764684738406,0.68,131.08,131.06,8.54]
[1764684738715,9.0941471,131.1,131.07,0.72]
[1764684739115,9.7741471,131.1,131.07,0.72]
[1764684739432,9.0941471,131.09,131.07,0.72]
[1764684739812,9.7741471,131.09,131.06,8.54]
[1764684740116,17.40305964,131.09,131.06,8.54]
[1764684740415,17.40305964,131.09,131.06,9.26]
[1764684741011,8.30891254,131.09,131.06,9.26]
[1764684741310,17.40305964,131.09,131.06,9.26]
[1764684741497,16.72305964,131.09,131.07,0.72]
[1764684742100,7.62891254,131.09,131.07,0.72]
[1764684742302,7.62891254,131.09,131.06,8.54]
[1764684742501,7.62891254,131.09,131.06,9.26]
[1764684742818,16.72305964,131.09,131.06,9.26]
[1764684743717,7.62891254,131.09,131.06,9.26]
[1764684744597,7.62891254,131.09,131.07,0.72]
[1764684744796,7.62891254,131.09,131.06,8.54]
[1764684745014,7.62891254,131.09,131.06,9.26]
[1764684745318,24.82357329,131.12,131.07,4.39096256]
[1764684745922,28.49453585,131.12,131.08,0.72]
[1764684746228,28.49453585,131.12,131.09,8.54]
[1764684746522,36.12119562,131.12,131.09,8.54]
[1764684746714,36.12119562,131.12,131.09,9.26]
[1764684746911,3.67096256,131.11,131.09,8.54]
[1764684747513,4.35096256,131.11,131.09,8.54]
[1764684748014,0.68,131.11,131.09,8.54]
[1764684748417,4.35096256,131.11,131.09,8.54]
[1764684748920,11.97838032,131.11,131.09,8.54]
[1764684749429,4.35096256,131.1,131.09,8.54]
[1764684749725,4.35096256,131.1,131.07,8.54]
[1764684750220,4.35096256,131.1,131.06,0.72]
[1764684750428,4.35096256,131.09,131.07,8.54]
[1764684751326,11.97986775,131.09,131.07,8.54]
[1764684752914,11.99986775,131.09,131.05,9.26]
[1764684753113,3.67096256,131.08,131.05,8.54]
[1764684753310,3.67096256,131.08,131.03,0.68]
[1764684753311,3.67096256,131.07,131.03,0.68]
[1764684753526,4.37096256,131.07,131.03,9.22]
[1764684753719,4.37096256,131.07,131.03,16.85169246]
[1764684754023,3.67096256,131.04,130.99,0.68]
[1764684754229,3.67096256,131.03,130.99,0.68]
[1764684754619,3.67096256,131.02,130.99,0.68]
[1764684754823,12.00294463,131.03,130.99,8.31379072]
[1764684755129,12.00294463,131.03,130.99,0.68]
[1764684755428,3.67096256,131.02,130.99,0.68]
[1764684756031,4.37096256,131.02,130.99,0.68]
[1764684756229,3.67096256,131.02,130.99,0.68]
[1764684756415,3.67096256,131.02,130.99,8.31412709]
[1764684756830,12.00286054,131.03,130.99,8.31412709]
[1764684757330,3.67096256,131.02,130.99,0.68]
[1764684757536,4.37096256,131.02,130.99,0.68]
[1764684757703,4.37096256,131.02,130.98,8.54]
[1764684758015,4.37096256,131.02,130.98,9.22]
[1764684758638,3.67096256,131.01,130.98,9.22]
[1764684759338,11.30451645,131.01,130.98,9.22]
[1764684759829,4.37096256,131.0,130.97,0.2]
[1764684760030,4.37096256,131.0,130.97,8.74]
[1764684760227,4.37096256,131.0,130.97,9.42]
[1764684760535,4.37096256,130.99,130.97,0.2]
[1764684761029,27.41606667,131.01,130.97,9.42]
[1764684761212,7.63355389,131.01,130.97,9.42]
[1764684761413,7.63248919,131.02,130.98,0.68]
[1764684761613,7.63248919,131.02,130.97,20.04590957]
[1764684761614,8.33248919,131.02,130.97,20.04590957]
[1764684762340,7.63184003,131.03,130.97,39.13425041]
[1764684762516,23.44817372,131.05,130.98,8.80994492]
[1764684762717,0.7,131.04,130.99,3.67096256]
[1764684762917,0.7,131.04,131.0,8.54]
[1764684763341,12.0023012,131.04,131.0,8.54]
[1764684763556,12.0023012,131.04,131.0,16.17332184]
[1764684763720,11.3023012,131.04,131.0,16.17332184]
[1764684764039,0.7,131.03,131.0,16.87332184]
[1764684764849,7.63071415,131.05,131.01,0.7]
[1764684765341,12.00064688,131.07,131.01,4.37096256]
[1764684765541,12.00064688,131.07,131.02,7.63242253]
[1764684765841,8.32968432,131.07,131.03,8.54]
[1764684766037,8.32968432,131.07,131.03,9.24]
[1764684766344,12.00064688,131.07,131.03,9.24]
[1764684766646,12.00064688,131.07,131.03,16.8716204]
[1764684766832,11.30064688,131.07,131.03,8.54]
[1764684767028,4.37096256,131.06,131.03,8.54]
[1764684767228,11.30064688,131.07,131.03,9.24]
[1764684767436,0.7,131.06,131.04,8.54]
[1764684768955,4.37096256,131.06,131.04,8.54]
[1764684769234,0.7,131.06,131.04,8.54]
[1764684769842,7.62834693,131.09,131.04,8.54]
[1764684770148,0.7,131.08,131.05,0.7]
[1764684770336,0.7,131.08,131.05,8.33057952]
[1764684770823,0.7,131.08,131.04,16.17106127]
[1764684771025,11.99990365,131.08,131.04,9.24]
[1764684771231,0.7,131.08,131.04,16.87100153]
[1764684771546,3.67096256,131.09,131.05,0.7]
[1764684771747,4.37096256,131.09,131.05,0.7]
[1764684772417,3.67096256,131.09,131.05,8.33064901]
[1764684772621,8.32783496,131.1,131.05,8.33064901]
[1764684772924,4.37096256,131.11,131.06,0.7]
[1764684773224,3.67096256,131.09,131.07,8.54]
[1764684773427,24.81858508,131.12,131.08,28.78977148]
[1764684773632,24.81858508,131.12,131.08,91.38977148]
[1764684773839,24.81858508,131.12,131.09,0.7]
[1764684774031,24.81858508,131.12,131.1,8.54]
[1764684774523,24.81858508,131.12,131.11,8.32718328]
[1764684774741,4.37096256,131.15,131.11,8.32718328]
[1764684774742,0.7,131.15,131.11,8.32718328]
[1764684775041,4.37096256,131.17,131.12,0.7]
[1764684775238,4.37096256,131.17,131.13,8.54]
[1764684775239,3.67096256,131.15,131.13,8.54]
[1764684775622,4.37096256,131.16,131.13,8.54]
[1764684775825,3.67096256,131.14,131.13,8.54]
[1764684776242,4.37096256,131.14,131.09,8.32794651]
[1764684776440,3.67096256,131.12,131.1,8.54]
[1764684776635,0.7,131.13,131.1,8.54]
[1764684776976,3.67096256,131.11,131.08,16.308864]
[1764684777143,0.7,131.12,131.06,8.54]
[1764684777321,3.67096256,131.11,131.06,9.24]
[1764684777517,0.7,131.12,131.07,0.7]
[1764684777723,4.37096256,131.12,131.07,0.7]
[1764684778123,7.62606615,131.13,131.07,0.7]
[1764684778124,4.37096256,131.11,131.07,0.7]
[1764684778450,9.78770856,131.11,131.07,0.7]
[1764684778947,17.41519262,131.11,131.07,8.32942164]
[1764684779149,17.41519262,131.11,131.07,0.7]
[1764684779354,9.78770856,131.1,131.06,8.54]
[1764684779526,0.7,131.1,131.07,8.54]
[1764684780051,9.78770856,131.1,131.07,8.54]
[1764684780552,7.62616158,131.13,131.08,0.7]
[1764684780744,16.71387014,131.13,131.08,0.7]
[1764684780958,17.41387014,131.13,131.08,0.7]
[1764684781137,17.41387014,131.13,131.07,79.52770856]
[1764684781138,9.08770856,131.1,131.05,78.908864]
[1764684781331,9.08770856,131.1,131.06,8.54]
[1764684781652,0.7,131.1,131.06,35.94507156]
[1764684781851,9.78770856,131.1,131.06,16.86983885]
[1764684782244,9.78770856,131.1,131.06,8.32983885]
[1764684782443,6.13835229,131.1,131.07,8.54]
[1764684782646,6.13835229,131.09,131.07,8.54]
[1764684782841,5.43835229,131.08,131.07,8.54]
[1764684783152,13.76685097,131.09,131.07,8.54]
[1764684783556,5.43835229,131.08,131.04,7.63090754]
[1764684783870,6.13835229,131.08,131.05,8.52]
[1764684784082,6.13835229,131.07,131.05,8.52]
[1764684784236,6.13835229,131.07,131.03,7.63167974]
[1764684784436,6.13835229,131.07,131.04,8.52]
[1764684785154,6.13835229,131.06,131.04,8.52]
[1764684785359,13.76845866,131.06,131.04,8.52]
[1764684785958,0.7,131.05,131.04,8.52]
[1764684786176,6.13835229,131.05,131.02,16.308864]
[1764684786336,6.13835229,131.05,131.03,8.52]
[1764684786671,0.7,131.04,131.03,8.52]
[1764684787153,6.13835229,131.04,131.03,8.52]
[1764684787751,0.7,131.04,131.03,8.52]
[1764684788062,0.7,131.04,131.02,8.52]
[1764684788236,13.77003018,131.04,131.02,8.52]
[1764684788735,13.77003018,131.04,131.0,0.7]
[1764684789058,13.77003018,131.04,131.01,8.52]
[1764684789966,13.77003018,131.04,130.94,8.52]
[1764684789967,5.43835229,131.02,130.97,0.2]
[1764684790143,5.43835229,131.01,130.97,8.72]
[1764684790461,5.43835229,131.0,130.97,8.72]
[1764684790959,0.7,131.0,130.97,8.72]
[1764684791161,0.7,130.99,130.97,16.35528928]
[1764684791555,6.15835229,131.02,130.97,17.06528928]
[1764684791733,5.43835229,131.01,130.97,9.43]
[1764684791938,6.15835229,131.01,130.97,8.72]
[1764684792161,5.43835229,131.01,130.97,8.72]
[1764684792365,0.72,131.0,130.97,8.72]
[1764684792665,0.72,131.0,130.97,16.35531128]
[1764684792863,0.72,131.0,130.97,8.72]
[1764684793082,5.43835229,130.98,130.97,0.2]
[1764684793551,0.72,130.98,130.97,0.2]
[1764684793862,22.6030506,130.98,130.97,0.2]
[1764684794265,17.16469831,130.98,130.97,0.2]
[1764684794562,22.6030506,130.98,130.97,0.2]
[1764684795663,13.79310568,130.98,130.97,0.2]
[1764684796457,13.79310568,130.98,130.97,4e-08]
[1764684796458,6.15835229,130.98,130.97,4e-08]
[1764684796661,0.72,130.98,130.97,4e-08]
[1764684796857,0.72,131.0,130.97,4e-08]
[1764684797058,6.15835229,130.99,130.97,4e-08]
[1764684797251,0.72,130.99,130.97,4e-08]
[1764684797456,0.72,130.98,130.97,4e-08]
[1764684798170,8.35475339,130.98,130.97,4e-08]
[1764684799048,10.70822712,130.98,130.97,4e-08]
[1764684799656,0.72,130.98,130.97,4e-08]
[1764684799847,8.35475339,130.98,130.97,4e-08]
[1764684800142,10.70822712,130.98,130.97,4e-08]
[1764684800467,8.35475339,130.98,130.97,4e-08]
[1764684800674,10.70822712,130.98,130.97,4e-08]
[1764684801558,7.63475339,130.98,130.97,4e-08]
[1764684801762,8.35475339,130.98,130.97,4e-08]
[1764684802271,7.63475339,130.98,130.97,4e-08]
[1764684804262,0.72,131.01,130.97,4e-08]
[1764684804459,26.71347885,131.02,130.97,61.90000004]
[1764684804460,2.35347373,131.0,130.97,61.90000004]
[1764684804670,3.07347373,131.01,130.97,61.90000004]
[1764684804982,0.72,131.01,130.97,61.90000004]
[1764684805184,0.72,131.0,130.97,61.90000004]
[1764684805483,8.35242253,131.02,130.98,0.71]
[1764684805979,10.70589626,131.02,130.98,0.71]
[1764684806575,7.63242253,131.02,130.98,8.34441932]
[1764684806767,7.63242253,131.02,130.99,0.71]
[1764684807083,10.70589626,131.02,130.98,8.34441932]
[1764684808379,29.78695258,131.02,130.98,0.71]
[1764684808584,3.07347373,131.01,130.98,8.54]
[1764684809079,7.63358778,131.0,130.98,9.25]
[1764684809279,7.63358778,131.0,130.98,8.54]
[1764684809780,7.63358778,131.0,130.97,4e-08]
[1764684809781,0.72,130.99,130.97,8.54000004]
[1764684809973,3.07347373,130.99,130.97,8.54000004]
[1764684810166,0.72,130.99,130.97,4e-08]
[1764684810478,54.46891518,131.03,130.97,0.71000004]
[1764684810479,8.35242253,131.02,130.97,0.71000004]
[1764684810657,2.35347373,131.01,130.97,4e-08]
[1764684810865,2.35347373,130.99,130.97,4e-08]
[1764684811085,7.63417054,130.99,130.97,4e-08]
[1764684811377,8.35417054,130.99,130.97,4e-08]
[1764684811582,2.35347373,131.01,130.97,0.71000004]
[1764684811955,3.07347373,131.01,130.97,0.71000004]
[1764684812365,9.98589626,131.02,130.97,0.71000004]
[1764684812583,10.70589626,131.02,130.97,0.71000004]
[1764684812769,9.98589626,131.02,130.97,0.71000004]
[1764684812972,3.07347373,131.01,130.97,0.71000004]
[1764684813283,2.35347373,130.99,130.97,4e-08]
[1764684813663,33.65880892,131.05,130.97,0.71000004]
[1764684813664,2.35347373,131.01,130.97,0.71000004]
[1764684814180,2.35347373,131.0,130.97,4e-08]
[1764684814388,2.35347373,130.99,130.97,4e-08]
[1764684814590,3.07347373,130.99,130.97,4e-08]
[1764684815382,9.98777205,130.99,130.97,4e-08]
[1764684816088,10.70777205,130.99,130.97,4e-08]
[1764684816784,3.07347373,130.99,130.97,4e-08]
[1764684816995,10.70789321,130.99,130.97,4e-08]
[1764684817573,0.72,130.98,130.97,4e-08]
[1764684818685,3.07347373,130.98,130.97,4e-08]
[1764684819492,10.70822712,130.98,130.97,4e-08]
[1764684819675,8.35475339,130.98,130.97,4e-08]
[1764684820188,10.70822712,130.98,130.97,4e-08]
[1764684821105,7.63475339,130.98,130.97,4e-08]
[1764684821786,8.29475339,130.98,130.97,4e-08]
[1764684822892,10.64822712,130.98,130.97,4e-08]
[1764684824312,19.45817204,130.98,130.97,4e-08]
[1764684825474,10.64822712,130.98,130.97,4e-08]
[1764684827578,7.63475339,130.98,130.97,4e-08]
[1764684827773,9.98822712,130.98,130.97,4e-08]
[1764684828080,10.64822712,130.98,130.97,4e-08]
[1764684828791,7.63475339,130.98,130.97,4e-08]
[1764684830781,10.64792406,130.99,130.97,4e-08]
[1764684831112,2.35347373,131.01,130.97,0.66000004]
[1764684831603,2.35347373,131.02,130.97,0.66000004]
[1764684831977,7.63300511,131.01,130.97,8.2949201]
[1764684832216,10.64616056,131.02,130.98,0.66]
[1764684833404,9.98616056,131.02,130.98,9.2]
[1764684833795,9.98616056,131.02,130.98,8.54]
[1764684833995,9.98616056,131.02,130.99,0.66]
[1764684834207,2.35347373,131.02,130.99,0.66]
[1764684834593,10.64606645,131.02,130.99,0.66]
[1764684835706,9.98606645,131.02,130.99,0.66]
[1764684835904,9.98553101,131.03,130.99,8.29401155]
[1764684836206,2.35347373,131.03,131.0,8.29355818]
[1764684836388,9.98537966,131.03,131.0,70.19355818]
[1764684836709,2.35347373,131.03,131.01,0.66]
[1764684837214,10.64497278,131.04,131.01,0.66]
[1764684837511,2.35347373,131.03,131.01,0.66]
[1764684838294,3.01347373,131.02,131.0,61.9]
[1764684838900,3.01347373,131.01,130.97,4e-08]
[1764684839111,2.35347373,130.99,130.97,4e-08]
[1764684839417,3.01347373,130.99,130.97,4e-08]
[1764684839911,2.35347373,130.99,130.97,4e-08]
[1764684840110,9.98799738,130.99,130.97,4e-08]
[1764684840286,10.64799738,130.99,130.97,4e-08]
[1764684840486,9.98799738,130.99,130.97,4e-08]
[1764684841605,10.64799738,130.99,130.97,4e-08]
[1764684841921,7.63184003,131.03,130.98,11.53347373]
[1764684842090,0.66,131.05,130.99,2.35347373]
[1764684842293,3.01347373,131.05,131.0,0.66]
[1764684842494,2.35347373,131.04,131.01,8.52]
[1764684842814,2.35347373,131.03,131.01,8.52]
[1764684843816,9.98556113,131.03,131.01,8.52]
[1764684844415,11.30656751,131.03,131.01,8.52]
[1764684845114,0.66,131.04,131.01,8.52]
[1764684845115,11.96589919,131.04,131.01,8.52]
[1764684847392,0.66,131.05,131.01,78.71267532]
[1764684847593,4.33448011,131.05,131.01,78.71267532]
[1764684848302,3.67448011,131.04,131.01,78.71267532]
[1764684848813,3.67448011,131.04,131.01,69.53267532]
[1764684849014,0.66,131.03,131.01,70.42]
[1764684849318,3.67448011,131.03,131.01,70.42]
[1764684849520,4.33448011,131.03,131.01,70.42]
[1764684850589,3.67448011,131.03,131.01,70.42]
[1764684850805,3.67448011,131.03,131.01,71.08]
[1764684851116,11.96580437,131.04,131.01,70.42]
[1764684851616,4.33448011,131.03,131.01,70.42]
[1764684851799,3.67448011,131.02,131.01,70.42]
[1764684851995,4.39448011,131.02,131.01,8.52]
[1764684852201,3.67448011,131.03,131.01,8.52]
[1764684852401,4.39448011,131.03,131.01,8.52]
[1764684852717,0.72,131.03,131.01,8.52]
[1764684853820,4.39448011,131.05,131.01,16.81292769]
[1764684854014,4.39448011,131.05,131.01,78.71292769]
[1764684854621,0.72,131.04,131.01,70.42]
[1764684854798,0.72,131.04,131.01,78.05298902]
[1764684855422,0.72,131.04,131.01,78.71298902]
[1764684855715,0.72,131.04,131.01,78.05298902]
[1764684855923,0.72,131.04,131.01,78.71298902]
[1764684856121,12.02525499,131.05,131.01,78.71298902]
[1764684857120,3.67448011,131.04,131.01,1.08e-06]
[1764684857307,4.39448011,131.04,131.01,1.08e-06]
[1764684858019,3.67448011,131.03,131.01,1.08e-06]